Workbook

Sheet Acceuil
E7: COMITE INTERMINISTERIEL DE PILOTAGE DE LA POLITIQUE NATIONALE DE DECENTRALISATION ET DE DECONCENTRATION (CIP-PONADEC)
E8: SECRETARIAT PERMANENT
E10: Calcul de l'Indice de bonne Gouvernance Locale (IGL)
F12: Département | G12: COUFFO | I12: Commune | J12: DOGBO | O12: Année : | P12: 2019
E17: Informations à saisir par catégorie
G19: Budget | L19: Cadres de Concertation
G20: Conseil Communal | L20: Tutelle
G21: Conseil d'Arrondissement | L21: Marchés
G22: Conseil de Village | L22: Services délégués
G23: Commissions Permanentes | L23: Autres données

Sheet Budget
A1: Retour à l'accueil
A2: Prévision | D2: Réalisation | K2: Autres données financieres
A3: Montant du budget | B3: Recette fiscales | C3: PAI | D3: Dépenses d'investissement | G3: Dépenses totales de fonctionnement | H3: Dépenses d'entretien des équipements et ouvrages | I3: Recettes fiscales | J3: PAI | K3: Montant des ressources propres de l'année 2018 | L3: Montant des ressources propres de l'année 2019 | M3: Montant des cotisations versées à échéance (Intercommunalité et Association de communes) | N3: Montant des cotisations dues à échéance (Intercommunalité et Association de communes)
D4: Ressources propres (Auto financement) | E4: Investissement provenant de la coopération décentralisée | F4: Autres ressources
A5: 1187232688 | B5: 266814793 | C5: 4418728000 | D5: 13834751 | E5: 13834317 | F5: 211144668 | G5: 250854798 | H5: 16388718 | I5: 187429804 | J5: 312670230 | K5: 245000754 | L5: 265212209 | M5: 1000000 | N5: 1800000

Sheet CC
A1: Retour à l'accueil
A2: Tenue des Sessions ordinaires
A3: Nombre de réunions de municipalité tenues | D3: 5
A4: Nombre d'élus du Conseil Communal | D4: 19
A5: Sessions | B5: Nombre d'élus présents | C5: Date début session | D5: Date fin session | E5: Date affichage relevé session | F5: Production du rapport d'activités du Maire | H5: dif | I5: delai
A6: Session N°1 | B6: 17 | C6: 2019-03-28 | D6: 2019-03-29 | E6: 2019-04-02 | F6: OUI | H6: =IF(OR(D6="",E6=""),-1,DATEDIF(D6,E6,"d")) -> 4 | I6: =IF(OR(H6<0,H6>8),0,1) -> 1
A7: Session N°2 | B7: 16 | C7: 2019-06-27 | D7: 2019-06-28 | E7: 2019-07-03 | F7: OUI | H7: =IF(OR(D7="",E7=""),-1,DATEDIF(D7,E7,"d")) -> 5 | I7: =IF(OR(H7<0,H7>8),0,1) -> 1
A8: Session N°3 | B8: 18 | C8: 2019-09-30 | D8: 2019-09-30 | E8: 2019-10-02 | F8: OUI | H8: =IF(OR(D8="",E8=""),-1,DATEDIF(D8,E8,"d")) -> 2 | I8: =IF(OR(H8<0,H8>8),0,1) -> 1
A9: Session N°4 | B9: 19 | C9: 2019-11-18 | D9: 2019-11-19 | E9: 2019-12-23 | F9: OUI | H9: =IF(OR(D9="",E9=""),-1,DATEDIF(D9,E9,"d")) -> 34 | I9: =IF(OR(H9<0,H9>8),0,1) -> 0

Sheet CA
A1: Retour à l'accueil
A2: Arrondissements | B2: Nombre de sessions de conseils d’arrondissement tenues
A3: AYOMI
A4: DEVE
A5: HONTON
A6: LOKOGOHOUE
A7: MADJRE
A8: TOTCHANGNI CENTRE
A9: TOTA

Sheet CV
A1: Retour à l'accueil
A2: Arrondissements | B2: Villages | C2: Nombre de réunions de conseils de village tenues au cours de l’année | D2: Section Villagoise\urbaine de Gestion Fonctiere (SVGF et SUGF)
D3: Enquetes Publiques Contradictoires (EPC)
D4: Nombre de demandes effectuées | E4: Nombre de demandes réalisées
A5: AYOMI | B5: AGBEDRANFO | D5: 0 | E5: 0
B6: AVEDJIN | D6: 0 | E6: 0
B7: AYOMI CENTRE | D7: 0 | E7: 0
B8: GBANNAVE | D8: 0 | E8: 0
B9: KETCHANDJI-KPOLEDJI | D9: 0 | E9: 0
B10: KPODAHA CENTRE | D10: 0 | E10: 0
B11: KPODAHA DEKA | D11: 0 | E11: 0
B12: TOKPOTA | D12: 0 | E12: 0
B13: ZOHOUDJI | D13: 0 | E13: 0
B14: ZOKPEDJI | D14: 0 | E14: 0
A15: DEVE | B15: ADIDEVO | D15: 0 | E15: 0
B16: AGNAVO | D16: 0 | E16: 0
B17: DEVE-HOMEY | D17: 1 | E17: 0
B18: GBAKEHOUE | D18: 1 | E18: 1
B19: KPODJI | D19: 2 | E19: 1
B20: ZOHOUDJI | D20: 1 | E20: 0
A21: HONTON | B21: ATCHANHOUE | D21: 1 | E21: 1
B22: AVEGODE | D22: 0 | E22: 0
B23: CODJOHOUE | D23: 4 | E23: 4
B24: DADOHOUE | D24: 2 | E24: 2
B25: KOUTIME | D25: 0 | E25: 0
B26: KPOHA | D26: 2 | E26: 2
A27: LOKOGOHOUE | B27: HEDJAME | D27: 0 | E27: 0
B28: HOUNDROME | D28: 0 | E28: 0
B29: HOUNSA | D29: 2 | E29: 2
B30: LOKOGOHOUE | D30: 2 | E30: 2
B31: MIDANGBE | D31: 1 | E31: 1
B32: SEGBA | D32: 0 | E32: 0
B33: TOULEHOUDJI | D33: 2 | E33: 2
B34: VEHIDJI | D34: 2 | E34: 2
A35: MADJRE | B35: ADANDRO-AKODE | D35: 1 | E35: 1
B36: AYESSO | D36: 1 | E36: 1
B37: BOTAGBE | D37: 4 | E37: 3
B38: FAFADJI | D38: 1 | E38: 1
B39: GODOHOU | D39: 3 | E39: 3
B40: KENAVO | D40: 0 | E40: 0
B41: MADJRE CENTRE | D41: 6 | E41: 6
B42: TOGANNOU | D42: 0 | E42: 0
A43: TOTCHANGNI CENTRE | B43: ALLADA | D43: 3 | E43: 3
B44: GNIGBE | D44: 0 | E44: 0
B45: TOTCHANGNI | D45: 0 | E45: 0
A46: TOTA | B46: ACHITOU | D46: 0 | E46: 0
B47: AGBEGNIDOHOUE | D47: 0 | E47: 0
B48: AHOMEY | D48: 0 | E48: 0
B49: DAHOUE | D49: 9 | E49: 9
B50: DEGUIHOUE | D50: 10 | E50: 10
B51: DEKANDJI | D51: 3 | E51: 3
B52: FAMBOHOUE | D52: 0 | E52: 0
B53: FONCOME AGANDANNONHOUE | D53: 4 | E53: 4
B54: FONCOME AGBOHOUE | D54: 7 | E54: 7
B55: FONCOME GOUHOUN | D55: 0 | E55: 0
B56: FONCOME TETEHOUE | D56: 0 | E56: 0
B57: HOUEDJAMEY | D57: 7 | E57: 7
B58: HOUNGLOUI | D58: 0 | E58: 0
B59: KEGBEHOUE | D59: 0 | E59: 0
B60: KENOUHOUE | D60: 5 | E60: 0
B61: KPODAVE | D61: 17 | E61: 17
B62: KPOGODOU | D62: 3 | E62: 2
B63: LOKOGBA | D63: 20 | E63: 20
B64: MADANKANMEY | D64: 0 | E64: 0
B65: TOTA BALIME | D65: 7 | E65: 7
B66: TOTA KPODJI | D66: 4 | E66: 4
B67: ZAPHI GNAMAMEY | D67: 5 | E67: 5
B68: ZAPHI HOUEGANME | D68: 1 | E68: 1
B69: ZAPHI HOUNSA | D69: 0 | E69: 0

Sheet CP
A1: Retour à l'accueil
A2: Tenue des sessions ordinaires des commissions permanentes
A3: Commissions permanentes (CP) | B3: Nom de la commission | C3: Effectif des membres | D3: Réunion N°1 | G3: Réunion N°2 | J3: Réunion N°3 | M3: Réunion N°4 | P3: Réunion N°5 | S3: Réunion N°6 | V3: Réunion N°7 | Y3: Réunion N°8 | AB3: Réunion N°9 | AE3: Réunion N°10 | AH3: Réunion N°11 | AK3: Réunion N°12
D4: Nombre de membres presents | E4: Nombre de propositions faites | F4: Nombre de propositions réalisées par le Maire | G4: Nombre de membres presents | H4: Nombre de propositions faites | I4: Nombre de propositions réalisées par le Maire | J4: Nombre de membres presents | K4: Nombre de propositions faites | L4: Nombre de propositions réalisées par le Maire | M4: Nombre de membres presents | N4: Nombre de propositions faites | O4: Nombre de propositions réalisées par le Maire | P4: Nombre de membres presents | Q4: Nombre de propositions faites | R4: Nombre de propositions réalisées par le Maire | S4: Nombre de membres presents | T4: Nombre de propositions faites | U4: Nombre de propositions réalisées par le Maire | V4: Nombre de membres presents | W4: Nombre de propositions faites | X4: Nombre de propositions réalisées par le Maire | Y4: Nombre de membres presents | Z4: Nombre de propositions faites | AA4: Nombre de propositions réalisées par le Maire | AB4: Nombre de membres presents | AC4: Nombre de propositions faites | AD4: Nombre de propositions réalisées par le Maire | AE4: Nombre de membres presents | AF4: Nombre de propositions faites | AG4: Nombre de propositions réalisées par le Maire | AH4: Nombre de membres presents | AI4: Nombre de propositions faites | AJ4: Nombre de propositions réalisées par le Maire | AK4: Nombre de membres presents | AL4: Nombre de propositions faites | AM4: Nombre de propositions réalisées par le Maire
A5: CP N°1 | B5: Commission des Affaires Economiques et Financieres (CAEF) | C5: 3 | D5: 2 | E5: 3 | F5: 1 | G5: 3 | H5: 3 | I5: 1 | AP5: =C5*COUNTA(D5,G5,J5,M5,S5,V5,Y5,AB5,AE5,AH5,AK5) -> 6
A6: CP N°2 | B6: Commission des Affaires Domaniales et Environnementales (CADE) | C6: 3 | D6: 3 | E6: 2 | F6: 2 | G6: 3 | H6: 2 | I6: 1 | AP6: =C6*COUNTA(D6,#REF!,G6,M6,S6,V6,Y6,AB6,AE6,AH6,AK6) -> 9
A7: CP N°3 | B7: Commission des Affaires Sociales et Culturelles (CASC) | C7: 3 | D7: 3 | E7: 2 | F7: 1 | G7: 2 | H7: 3 | I7: 2 | J7: 3 | K7: 2 | L7: 1 | M7: 3 | N7: 0 | O7: 0 | AP7: 12
A8: CP N°4 | B8: Commission des Affaires Culturelles, sportives et Sociales (CACS) | C8: 3 | D8: 3 | E8: 2 | F8: 0 | G8: 3 | H8: 2 | I8: 1 | J8: 3 | K8: 3 | L8: 1 | AP8: 9
A9: CP N°5 | B9: Commission des Affaires Environnementales et d’Assainissement (CAEA). | C9: 3 | D9: 3 | E9: 4 | F9: 1 | G9: 3 | H9: 1 | I9: 0 | AP9: 6
A10: CP N°6 | B10: Commission Santé et Education (CSE) | C10: 3 | D10: 3 | E10: 2 | F10: 2 | G10: 3 | H10: 2 | I10: 1 | J10: 2 | K10: 1 | L10: 0 | AP10: 9
A11: CP N°7 | AP11: 0
A12: CP N°8 | AP12: 0
A13: CP N°9 | AP13: 0
A14: CP N°10 | AP14: 0
A15: Nombre | C15: =COUNT(C5:C14) -> 6 | D15: 6 | E15: 6 | F15: 6 | G15: 6 | H15: 6 | I15: 6 | J15: 3 | K15: 3 | L15: 3 | M15: 1 | N15: 1 | O15: 1 | P15: 0 | Q15: 0 | R15: 0 | S15: 0 | T15: 0 | U15: 0 | V15: 0 | W15: 0 | X15: 0 | Y15: 0 | Z15: 0 | AA15: 0 | AB15: 0 | AC15: 0 | AD15: 0 | AE15: 0 | AF15: 0 | AG15: 0 | AH15: 0 | AI15: 0 | AJ15: 0 | AK15: 0 | AL15: 0 | AM15: 0 | AP15: =SUM(AP5:AP14) -> 51
A16: Effectif | C16: =SUM(C5:C14) -> 18 | D16: 17 | E16: 15 | F16: 7 | G16: 17 | H16: 13 | I16: 6 | J16: 8 | K16: 6 | L16: 2 | M16: 3 | N16: 0 | O16: 0 | P16: 0 | Q16: 0 | R16: 0 | S16: 0 | T16: 0 | U16: 0 | V16: 0 | W16: 0 | X16: 0 | Y16: 0 | Z16: 0 | AA16: 0 | AB16: 0 | AC16: 0 | AD16: 0 | AE16: 0 | AF16: 0 | AG16: 0 | AH16: 0 | AI16: 0 | AJ16: 0 | AK16: 0 | AL16: 0 | AM16: 0

Sheet Cadres de Concertation
A1: Retour à l'accueil
A2: Tenue des Cadres de Concertation
A3: Mairie-SDE | F3: Autres Cadres
A4: Effectif des membres du Cadre de Concertation Mairie-SDE | C4: 32 | F4: Education | G4: Eau, Hygiène et Assainissement | H4: Agricole | I4: Maire et OSC | J4: Nutrition | K4: Sport | L4: Autres
A5: Nombre de sessions prévues | C5: 12
A6: Sessions | B6: Effectif présent | C6: Date | D6: Nombre de séances tenues | F6: 9 | H6: 8 | I6: 4 | J6: 4 | K6: 2 | L6: 2
A7: Session N°1 | B7: 24 | C7: 2019-01-07
A8: Session N°2 | B8: 23 | C8: 2019-02-04
A9: Session N°3 | B9: 27 | C9: 2019-03-04
A10: Session N°4 | B10: 29 | C10: 2019-04-01
A11: Session N°5 | B11: 30 | C11: 2019-05-06
A12: Session N°6
A13: Session N°7
A14: Session N°8
A15: Session N°9
A16: Session N°10 | B16: 20 | C16: 2019-10-07
A17: Session N°11 | B17: 24 | C17: 2019-11-04
A18: Session N°12 | B18: 19 | C18: 2019-12-02

Sheet Tutelle
A1: Retour à l'accueil
A2: Participation aux CDCC | E2: Budget communal (Budget primitif) | F2: Le budget est transmis ou pas. | H2: TRANSMIS
A3: Effectif (Maire et ses adjoints) | C3: 3 | F3: Date d'adoption du budget | H3: 2018-11-22
A4: Sessions | B4: Effectif présent | C4: Date début session | D4: Date fin session | F4: Date de transmission du budget à la tutelle | H4: 2018-11-30
A5: CDCC N°1 | B5: 3 | C5: 2019-01-23 | D5: 2019-01-23 | F5: Date d'approbation du budget par la tutelle
A6: CDCC N°2 | B6: 3 | C6: 2019-10-15 | D6: 2019-10-15 | E6: Compte Administratif | F6: Le compte administratif est transmis ou pas. | H6: TRANSMIS
A7: Conformité des actes | F7: Date d'adoption du compte administratif de l'année 2018 | H7: 2019-05-14
A8: Nombre d’actes conformes | D8: 15 | F8: Date de transmission à la tutelle | H8: 2019-06-07
A9: Nombre d’actes soumis pour approbation | D9: 17 | F9: Date d'approbation du compte administratif par la tutelle

Sheet Marchés
A1: Retour à l'accueil
A2: Type de commune | E2: Commune ordinaire
A3: Plan de passation des marchés publics publiés | E3: OUI
A4: Nombre de marchés publics passés hors plan de passation des marchés | E4: 0
A5: Nombre de marchés conclus dans l'année | E5: 28
A6: Nombre de marchés conclus dans l’année ayant respecté les procédures | E6: 28
A7: Mode de passation | B7: Délai de passation | C7: Marché N°1 | E7: Marché N°2 | G7: Marché N°3 | I7: Marché N°4 | K7: Marché N°5 | M7: Marché N°6 | O7: Marché N°7 | Q7: Marché N°8 | S7: Marché N°9 | U7: Marché N°10 | W7: Marché N°11 | Y7: Marché N°12 | AA7: Marché N°13 | AC7: Marché N°14 | AE7: Marché N°15 | AG7: Marché N°16 | AI7: Marché N°17 | AK7: Marché N°18 | AM7: Marché N°19 | AO7: Marché N°20 | AQ7: Marché N°21 | AS7: Marché N°22 | AU7: Marché N°23 | AW7: Marché N°24 | AY7: Marché N°25 | BA7: Marché N°26 | BC7: Marché N°27 | BE7: Marché N°28
C8: Construction du centre de jeunes, de la culture et de loisirs de Deve + fourniture de trois cent (300) chaises plastiques | E8: Construction de deux (02) dalots doubles (200x200x700) x2 sur l’axe Godohou-Noumonvihoue (arrondissement de Madjrè) et (150x150x700) x2 sur l’axe Lokogohoué centre-Zohoudji (arrondissement de Lokogohoué) | G8: Construction de la piste dénommée « ROUTE DE FER » sur le site touristique archéologique de GOUNOUDOUDJI | I8: Construction d'un module de trois (03) salles de classes avec bureau et magasin plus un bloc de latrine institutionnelle à quatre (04) cabines à l’Ecole Primaire Publique (EPP) de Fontinsa dans l’arrondissement de Tota | K8: Construction de la clôture du domaine du Centre de Santé de Foncomè (Kodji) sur quatre cent quatre vingt cinq (485) mètres linéaires | M8: Construction d’une aire de séchage de 20x10 m² plus achat de bâche et ingrédients de provende au centre d’incubation des jeunes entrepreneurs agricole de Dogbo. | O8: Fourniture et pose d’une pompe immergée plus tuyaux FORADUC pour le compte de l’Adduction d’Eau Villageoise (AEV) de Honton | Q8: Fourniture et pose de cinq (05) feux de signalisation au rond point de Dogbo | S8: Acquisition de deux (02) photocopieuses, deux (02) imprimantes couleurs et deux (02) imprimantes blancs noire | U8: Construction d’un abri plus magasin pour granuleuse au centre d’incubation des jeunes entrepreneurs agricole de Dogbo. | W8: Travaux d’Entretien Courant (EC) des Infrastructures de Transport Rural (ITR) par l’approche participative avec la méthode de Haute Intensité de Main d’œuvre (HIMO) dans la Commune de DOGBO lot n°2 | Y8: Travaux d’Entretien Courant (EC) des Infrastructures de Transport Rural (ITR) par l’approche participative avec la méthode de Haute Intensité de Main d’œuvre (HIMO) dans la Commune de DOGBO lot n°1 | AA8: Construction d'un module de trois (03) salles de classes avec bureau et magasin à l’Ecole Primaire Publique (EPP) de Codjohoué (Honton quartier) dans l’arrondissement de Honton | AC8: Construction d'un module de trois (03) salles de classes avec bureau et magasin à l’Ecole Primaire Publique (EPP) de Codjohoué (Honton quartier) dans l’arrondissement de Honton | AE8: Construction d'un bloc de cinq (05) boutiques Rez-De-Chaussée (RDC) avec fondations type R+1, dans le marché central de Dogbo lot N°1 | AG8: Construction d'un bloc de cinq (05) boutiques Rez-De-Chaussée (RDC) avec fondations type R+1, dans le marché central de Dogbo lot N°2 | AI8: Construction de deux (02) étangs de 200 m3 par étang (20mx10mx1m) au niveau du centre d’incubation agro pastoral des jeunes entrepreneurs agricoles de Dogbo | AK8: Acquisition de pièces de rechange et de réparation de niveleuse de la mairie de Dogbo. | AM8: Elaboration du Schéma Directeur dAménagement Communal (SDAC) de la commune de Dogbo | AO8: Réhabilitation et d’aménagement des pistes Tota-Ayomi-Deve (tronçon carrefour Dogbo Ahomey-forage artésien de Gbannavé) sur une distance de 1.8 km, | AQ8: Etudes techniques de faisabilité des travaux de pavage et d’assainissement de rues dans le centre ville de Tota commune de Dogbo | AS8: Aménagement et viabilisation de l’enceinte et de la devanture du parc gros porteur de Dogbo avec la construction d’un hangar dans l’enceinte et d’une guérite à l’entré | AU8: Acquisition et pose de lampadaires et pièces de rechange pour l’éclairage public dans la commune de Dogbo | AW8: Construction d’une salle de classe plus équipement à l’Ecole Maternelle (EM) de Dangnonhoué dans l’arrondissement de Madjrè | AY8: Etudes technique pour la réhabilitation et d’aménagement des pistes Tota-Ayomi-Deve (tronçon carrefour Dogbo Ahomey-forage artésien de Gbannavé) sur une distance de 1.8 km, | BA8: Etudes technique pour la réhabilitation et d’aménagement des pistes dans les arrondissements de Madjrè, Lokogohoué et Totchangni, | BC8: Construction d’un local pour élevage (poulailler de 12.3mx2.2m) au niveau du centre d’incubation agro pastoral des jeunes entrepreneurs agricoles de Dogbo sur financement FADeC AFFECTE AGRICULTURE 2018 | BE8: Acquisition de mobiliers pour le compte de l’école Primaire Publique (EPP) de FONTINSA, sur financement FADeC Affecté MEMP 2018
B9: 86 | C9: Type de marchés publics | D9: Nombre de jours consacrés à la passation | E9: Type de marchés publics | F9: Nombre de jours consacrés à la passation | G9: Type de marchés publics | H9: Nombre de jours consacrés à la passation | I9: Type de marchés publics | J9: Nombre de jours consacrés à la passation | K9: Type de marchés publics | L9: Nombre de jours consacrés à la passation | M9: Type de marchés publics | N9: Nombre de jours consacrés à la passation | O9: Type de marchés publics | P9: Nombre de jours consacrés à la passation | Q9: Type de marchés publics | R9: Nombre de jours consacrés à la passation | S9: Type de marchés publics | T9: Nombre de jours consacrés à la passation | U9: Type de marchés publics | V9: Nombre de jours consacrés à la passation | W9: Type de marchés publics | X9: Nombre de jours consacrés à la passation | Y9: Type de marchés publics | Z9: Nombre de jours consacrés à la passation | AA9: Type de marchés publics | AB9: Nombre de jours consacrés à la passation | AC9: Type de marchés publics | AD9: Nombre de jours consacrés à la passation | AE9: Type de marchés publics | AF9: Nombre de jours consacrés à la passation | AG9: Type de marchés publics | AH9: Nombre de jours consacrés à la passation | AI9: Type de marchés publics | AJ9: Nombre de jours consacrés à la passation | AK9: Type de marchés publics | AL9: Nombre de jours consacrés à la passation | AM9: Type de marchés publics | AN9: Nombre de jours consacrés à la passation | AO9: Type de marchés publics | AP9: Nombre de jours consacrés à la passation | AQ9: Type de marchés publics | AR9: Nombre de jours consacrés à la passation | AS9: Type de marchés publics | AT9: Nombre de jours consacrés à la passation | AU9: Type de marchés publics | AV9: Nombre de jours consacrés à la passation | AW9: Type de marchés publics | AX9: Nombre de jours consacrés à la passation | AY9: Type de marchés publics | AZ9: Nombre de jours consacrés à la passation | BA9: Type de marchés publics | BB9: Nombre de jours consacrés à la passation | BC9: Type de marchés publics | BD9: Nombre de jours consacrés à la passation | BE9: Type de marchés publics | BF9: Nombre de jours consacrés à la passation
A10: Appel Offre Ouvert | B10: 46 | C10: Travaux | D10: 30 | W10: Travaux | X10: 30 | Y10: Travaux | Z10: 30 | AM10: Prestation Intellectuelle | AN10: 30 | AO10: Travaux | AP10: 30
A11: Demande de renseignement | B11: 27 | E11: Travaux | F11: 10 | I11: Travaux | J11: 10 | K11: Travaux | L11: 10 | AA11: Travaux | AB11: 10 | AC11: Travaux | AD11: 10 | AE11: Travaux | AF11: 10 | AG11: Travaux | AH11: 10
A12: Demande de cotation | B12: 65 | G12: Travaux | H12: 5 | M12: Travaux | N12: 5 | O12: Fourniture | P12: 5 | Q12: Fourniture | R12: 5 | S12: Founiture | T12: 5 | U12: Travaux | V12: 5 | AI12: Travaux | AJ12: 5 | AK12: Fourniture Gré à gré | AL12: 5 | AQ12: Prestation Intellectuelle | AR12: 5 | AS12: Travaux | AT12: 5 | AU12: Fourniture | AV12: 5 | AW12: Travaux | AX12: 5 | AY12: Prestation Intellectuelle | AZ12: 5 | BA12: Prestation Intellectuelle | BB12: 5 | BC12: Travaux | BD12: 5 | BE12: Fourniture | BF12: 5
D13: =IF(C10="",0,IF(D10<=$B10,1,0)) -> 1 | F13: =IF(E10="",0,IF(F10<=$B10,1,0)) -> 0 | H13: =IF(G10="",0,IF(H10<=$B10,1,0)) -> 0 | J13: =IF(I10="",0,IF(J10<=$B10,1,0)) -> 0 | L13: =IF(K10="",0,IF(L10<=$B10,1,0)) -> 0 | N13: =IF(M10="",0,IF(N10<=$B10,1,0)) -> 0 | P13: =IF(O10="",0,IF(P10<=$B10,1,0)) -> 0 | R13: =IF(Q10="",0,IF(R10<=$B10,1,0)) -> 0 | T13: =IF(S10="",0,IF(T10<=$B10,1,0)) -> 0 | V13: =IF(U10="",0,IF(V10<=$B10,1,0)) -> 0 | X13: =IF(W10="",0,IF(X10<=$B10,1,0)) -> 1 | Z13: =IF(Y10="",0,IF(Z10<=$B10,1,0)) -> 1 | AB13: =IF(AA10="",0,IF(AB10<=$B10,1,0)) -> 0 | AD13: =IF(AC10="",0,IF(AD10<=$B10,1,0)) -> 0 | AF13: =IF(AE10="",0,IF(AF10<=$B10,1,0)) -> 0 | AH13: =IF(AG10="",0,IF(AH10<=$B10,1,0)) -> 0 | AJ13: =IF(AI10="",0,IF(AJ10<=$B10,1,0)) -> 0 | AL13: =IF(AK10="",0,IF(AL10<=$B10,1,0)) -> 0 | AN13: =IF(AM10="",0,IF(AN10<=$B10,1,0)) -> 1 | AP13: =IF(AO10="",0,IF(AP10<=$B10,1,0)) -> 1 | AR13: =IF(AQ10="",0,IF(AR10<=$B10,1,0)) -> 0 | AT13: =IF(AS10="",0,IF(AT10<=$B10,1,0)) -> 0 | AV13: =IF(AU10="",0,IF(AV10<=$B10,1,0)) -> 0 | AX13: =IF(AW10="",0,IF(AX10<=$B10,1,0)) -> 0 | AZ13: =IF(AY10="",0,IF(AZ10<=$B10,1,0)) -> 0 | BB13: =IF(BA10="",0,IF(BB10<=$B10,1,0)) -> 0 | BD13: =IF(BC10="",0,IF(BD10<=$B10,1,0)) -> 0 | BF13: =IF(BE10="",0,IF(BF10<=$B10,1,0)) -> 0
D14: =IF(C11="",0,IF(D11<=$B11,1,0)) -> 0 | F14: =IF(E11="",0,IF(F11<=$B11,1,0)) -> 1 | H14: =IF(G11="",0,IF(H11<=$B11,1,0)) -> 0 | J14: =IF(I11="",0,IF(J11<=$B11,1,0)) -> 1 | L14: =IF(K11="",0,IF(L11<=$B11,1,0)) -> 1 | N14: =IF(M11="",0,IF(N11<=$B11,1,0)) -> 0 | P14: =IF(O11="",0,IF(P11<=$B11,1,0)) -> 0 | R14: =IF(Q11="",0,IF(R11<=$B11,1,0)) -> 0 | T14: =IF(S11="",0,IF(T11<=$B11,1,0)) -> 0 | V14: =IF(U11="",0,IF(V11<=$B11,1,0)) -> 0 | X14: =IF(W11="",0,IF(X11<=$B11,1,0)) -> 0 | Z14: =IF(Y11="",0,IF(Z11<=$B11,1,0)) -> 0 | AB14: =IF(AA11="",0,IF(AB11<=$B11,1,0)) -> 1 | AD14: =IF(AC11="",0,IF(AD11<=$B11,1,0)) -> 1 | AF14: =IF(AE11="",0,IF(AF11<=$B11,1,0)) -> 1 | AH14: =IF(AG11="",0,IF(AH11<=$B11,1,0)) -> 1 | AJ14: =IF(AI11="",0,IF(AJ11<=$B11,1,0)) -> 0 | AL14: =IF(AK11="",0,IF(AL11<=$B11,1,0)) -> 0 | AN14: =IF(AM11="",0,IF(AN11<=$B11,1,0)) -> 0 | AP14: =IF(AO11="",0,IF(AP11<=$B11,1,0)) -> 0 | AR14: =IF(AQ11="",0,IF(AR11<=$B11,1,0)) -> 0 | AT14: =IF(AS11="",0,IF(AT11<=$B11,1,0)) -> 0 | AV14: =IF(AU11="",0,IF(AV11<=$B11,1,0)) -> 0 | AX14: =IF(AW11="",0,IF(AX11<=$B11,1,0)) -> 0 | AZ14: =IF(AY11="",0,IF(AZ11<=$B11,1,0)) -> 0 | BB14: =IF(BA11="",0,IF(BB11<=$B11,1,0)) -> 0 | BD14: =IF(BC11="",0,IF(BD11<=$B11,1,0)) -> 0 | BF14: =IF(BE11="",0,IF(BF11<=$B11,1,0)) -> 0
D15: =IF(C12="",0,IF(D12<=$B12,1,0)) -> 0 | F15: =IF(E12="",0,IF(F12<=$B12,1,0)) -> 0 | H15: =IF(G12="",0,IF(H12<=$B12,1,0)) -> 1 | J15: =IF(I12="",0,IF(J12<=$B12,1,0)) -> 0 | L15: =IF(K12="",0,IF(L12<=$B12,1,0)) -> 0 | N15: =IF(M12="",0,IF(N12<=$B12,1,0)) -> 1 | P15: =IF(O12="",0,IF(P12<=$B12,1,0)) -> 1 | R15: =IF(Q12="",0,IF(R12<=$B12,1,0)) -> 1 | T15: =IF(S12="",0,IF(T12<=$B12,1,0)) -> 1 | V15: =IF(U12="",0,IF(V12<=$B12,1,0)) -> 1 | X15: =IF(W12="",0,IF(X12<=$B12,1,0)) -> 0 | Z15: =IF(Y12="",0,IF(Z12<=$B12,1,0)) -> 0 | AB15: =IF(AA12="",0,IF(AB12<=$B12,1,0)) -> 0 | AD15: =IF(AC12="",0,IF(AD12<=$B12,1,0)) -> 0 | AF15: =IF(AE12="",0,IF(AF12<=$B12,1,0)) -> 0 | AH15: =IF(AG12="",0,IF(AH12<=$B12,1,0)) -> 0 | AJ15: =IF(AI12="",0,IF(AJ12<=$B12,1,0)) -> 1 | AL15: =IF(AK12="",0,IF(AL12<=$B12,1,0)) -> 1 | AN15: =IF(AM12="",0,IF(AN12<=$B12,1,0)) -> 0 | AP15: =IF(AO12="",0,IF(AP12<=$B12,1,0)) -> 0 | AR15: =IF(AQ12="",0,IF(AR12<=$B12,1,0)) -> 1 | AT15: =IF(AS12="",0,IF(AT12<=$B12,1,0)) -> 1 | AV15: =IF(AU12="",0,IF(AV12<=$B12,1,0)) -> 1 | AX15: =IF(AW12="",0,IF(AX12<=$B12,1,0)) -> 1 | AZ15: =IF(AY12="",0,IF(AZ12<=$B12,1,0)) -> 1 | BB15: =IF(BA12="",0,IF(BB12<=$B12,1,0)) -> 1 | BD15: =IF(BC12="",0,IF(BD12<=$B12,1,0)) -> 1 | BF15: =IF(BE12="",0,IF(BF12<=$B12,1,0)) -> 1
D16: =SUM(D13:D15) -> 1 | F16: =SUM(F13:F15) -> 1 | H16: =SUM(H13:H15) -> 1 | J16: =SUM(J13:J15) -> 1 | L16: =SUM(L13:L15) -> 1 | N16: =SUM(N13:N15) -> 1 | P16: =SUM(P13:P15) -> 1 | R16: =SUM(R13:R15) -> 1 | T16: =SUM(T13:T15) -> 1 | V16: =SUM(V13:V15) -> 1 | X16: =SUM(X13:X15) -> 1 | Z16: =SUM(Z13:Z15) -> 1 | AB16: =SUM(AB13:AB15) -> 1 | AD16: =SUM(AD13:AD15) -> 1 | AF16: =SUM(AF13:AF15) -> 1 | AH16: =SUM(AH13:AH15) -> 1 | AJ16: =SUM(AJ13:AJ15) -> 1 | AL16: =SUM(AL13:AL15) -> 1 | AN16: =SUM(AN13:AN15) -> 1 | AP16: =SUM(AP13:AP15) -> 1 | AR16: =SUM(AR13:AR15) -> 1 | AT16: =SUM(AT13:AT15) -> 1 | AV16: =SUM(AV13:AV15) -> 1 | AX16: =SUM(AX13:AX15) -> 1 | AZ16: =SUM(AZ13:AZ15) -> 1 | BB16: =SUM(BB13:BB15) -> 1 | BD16: =SUM(BD13:BD15) -> 1 | BF16: =SUM(BF13:BF15) -> 1

Sheet Services Délégués
A1: Retour à l'accueil
A2: EAU | G2: ASSAINISSEMENT | S2: SERVICES MARCHANDS | AA2: PANNEAUX PUBLICITAIRES | AC2: TOTAL
A3: AEV | C3: FPM | E3: PEA | G3: Entretien des voies urbaines | I3: Eclairage public | K3: Collecte et traitement des déchets | M3: Evacuation des eaux usées | O3: Gestion des cimétieres | Q3: Gestion des espaces verts | S3: Gestion des marchés | U3: Gestion des abattoirs | W3: Promotion du tourisme | Y3: Gestions des gares routieres
A4: PREVUES | B4: DELEGUEES | C4: PREVUES | D4: DELEGUEES | E4: PREVUES | F4: DELEGUEES | G4: PREVUS | H4: DELEGUES | I4: PREVUS | J4: DELEGUES | K4: PREVUS | L4: DELEGUES | M4: PREVUS | N4: DELEGUES | O4: PREVUS | P4: DELEGUES | Q4: PREVUS | R4: DELEGUES | S4: PREVUS | T4: DELEGUES | U4: PREVUS | V4: DELEGUES | W4: PREVUS | X4: DELEGUES | Y4: PREVUS | Z4: DELEGUES | AA4: PREVUS | AB4: DELEGUES | AC4: PREVUS | AD4: DELEGUES
A5: 15 | B5: 5 | C5: 94 | D5: 73 | E5: 0 | F5: 0 | H5: 0 | I5: 0 | J5: 0 | K5: 0 | L5: 0 | M5: 0 | N5: 0 | O5: 0 | P5: 0 | Q5: 0 | R5: 0 | S5: 0 | T5: 0 | U5: 0 | V5: 0 | W5: 0 | X5: 0 | Y5: 0 | Z5: 0 | AA5: 1 | AB5: 1 | AC5: =SUM(A5,C5,E5,G5,I5,K5,M5,O5,Q5,S5,U5,W5,Y5,AA5) -> 110 | AD5: =SUM(B5,D5,F5,H5,J5,L5,N5,P5,R5,T5,V5,X5,Z5,AB5) -> 79

Sheet Autres données
A1: Retour à l'accueil
A2: Données à collecter | D2: Valeurs
A3: Fonctionalité des services de la mairie | C3: Nombre de services prévus. | D3: 13
C4: Nombre de services fonctionnels | D4: 12
A5: Manuel de procédure | C5: Existence du manuel de procédure | D5: OUI
C6: Manuel de procédure actualisé. | D6: NON
A7: Evaluation du personnel | C7: Nombre de personnes évalué | D7: 42
C8: Effectif du personnel | D8: 42
A9: Adequation profil/poste | C9: Nombre de postes occupés dans la commune | D9: 18
C10: Nombre d'agents dont le profil correspond au poste occupé | D10: 16
A11: Données Foncieres | B11: Commission de Gestion foncière (COGEF) | C11: Existence de la COGEF | D11: OUI
C12: Nombre d'Attestation de Détention Coutumiere (ADC) demandé | D12: 126
C13: Nombre d'Attestation de Détention Coutumiere (ADC) traité | D13: 126
B14: Nombre de contentieux fonciers impliquant la commune | D14: 5
A15: Système d'information | C15: Existence d’un système de classement et d’archivage | D15: NON
C16: Existence d’une personne en charge du classement des archivages | D16: OUI
C17: Existence d’un local dédié à l’archivage | D17: OUI
C18: Existence de documents archivés. | D18: OUI
A19: Nombre de délégations | C19: Nombre de délégations de signature pris. | D19: 2
A20: Attributions de pouvoir | C20: Nombre d'attributions de pouvoir pris. | D20: 5
A21: Séances de reddition de comptes | C21: Nombre de séances tenues | D21: 2
C22: Nombre de séances prévues. | D22: 2
A23: Activités spécifiques en faveur des femmes | C23: Nombre d’activités spécifiques réalisées en faveur des femmes | D23: 2
C24: Nombre d’activités réalisées dans le PTA | D24: 2
A25: Informations sur les prestations de la commune | C25: Existence d’un lieu publique dédié à l'informations sur les prestations de la commune | D25: OUI
C26: Existence d'une personne en charge de l'information | D26: OUI
A27: SDAC en cours de validité | C27: Existence ou non d'un SDAC | D27: NON
A28: PDC en cours de validité | C28: Existence ou non d’un PDC | D28: OUI
A29: Suivi évaluation des PTA/PAI/PAD | C29: Nombre de séances de suivi évaluation des PTA | D29: 1
C30: Nombre de séances de suivi évaluation des PAI
C31: Nombre de séances de suivi évaluation des PAD | D31: 1
A32: Infrastructures économiques et marchandes | C32: Nombre réalisées en année 2019 | D32: 10
C33: Nombre réalisées en année 2018 | D33: 16
A34: TBS | C34: Existence d’un TBS actualisé | D34: NON
C35: Date d’actualisation
A36: Coopération décentralisée | C36: Nombre d’accord actif | D36: 1
C37: Nombre d’activités réalisées provenants de ces accords | D37: 2

Sheet Récapitulatif (hidden)
A1: Données à traiter | C1: Valeurs
A2: Nombre de sessions ordinaires tenues | C2: =COUNTA(CC!C6:C9) -> 4
A3: Nombre de services prévus. | C3: ='Autres données'!D3 -> 13
A4: Nombre de services existant doté en personnel. | C4: ='Autres données'!D4 -> 12
A5: Nombre d’élus du conseil communal | C5: =CC!D4 -> 19
A6: Nombre de conseillers présents à chaque conseil communal | C6: =SUMIF(CC!C6:C9,"<>",CC!B6:B9) -> 70
A7: Existence du manuel de procédure actualisé. | C7: =IF(OR('Autres données'!D5="NON",'Autres données'!D5=""),0,IF('Autres données'!D6="OUI",1,0.5)) -> 0.5
A8: Nombre de fiches d’évaluation du personnel évalué dans l’année. | C8: ='Autres données'!D7 -> 42
A9: Nombre de personnes à évaluer. | C9: ='Autres données'!D8 -> 42
A10: Nombre de commissions permanentes existantes. | C10: =CP!C15 -> 6
A11: Nombre de sessions des commissions permamentes | C11: =SUM(CP!D15,CP!G15,CP!J15,CP!M15,CP!P15,CP!V15,CP!Y15,CP!AB15,CP!AE15,CP!AH15,CP!AK15) -> 16
A12: Nombre présents commission permanente | C12: =SUM(CP!D16,CP!G16,CP!J16,CP!M16,CP!P16,CP!V16,CP!Y16,CP!AB16,CP!AE16,CP!AH16,CP!AK16) -> 45
A13: Nombre de propositions formulées par les commissions permanentes | C13: =SUM(CP!E16,CP!H16,CP!K16,CP!N16,CP!Q16,CP!T16,CP!W16,CP!Z16,CP!AC16,CP!AF16,CP!AI16,CP!AL16) -> 34
A14: Nombre de propositions formulées par les commissions permanentes réalisées. | C14: =SUM(CP!F16,CP!I16,CP!L16,CP!O16,CP!R16,CP!U16,CP!X16,CP!AA16,CP!AD16,CP!AG16,CP!AJ16,CP!AM16) -> 15
A15: Nombre de postes occupés | C15: ='Autres données'!D9 -> 18
A16: Nombre de postes occupés correspondant au profil recherché | C16: ='Autres données'!D10 -> 16
A17: Existence ou non d’un système de documentation et d’archivage | C17: =IF('Autres données'!D15="OUI",1,0) -> 0
A18: Existence ou non d’une personne en charge de la documentation et d’archivage | C18: =IF('Autres données'!D16="OUI",1,0) -> 1
A19: Existence ou non d’un local dédié à la documentation et d’archivage | C19: =IF('Autres données'!D17="OUI",1,0) -> 1
A20: Existence ou non de document archivés. | C20: =IF('Autres données'!D18="OUI",1,0) -> 1
A21: Nombre de services publics susceptibles d’être délégués | C21: ='Services Délégués'!AC5 -> 110
A22: Nombre de services publics délégués dans l’année | C22: ='Services Délégués'!AD5 -> 79
A23: Nombre total de rapports produits dans l’année | C23: =COUNTIF(CC!F6:F9,"=OUI") -> 4
A24: Nombre total de rapports à produire dans l’année. | C24: =C2 -> 4 | D24: nombre de session dans l'année =4
A25: Nombre de réunions de la municipalité | C25: =CC!D3 -> 5
A26: Nombre de réunions prévues | C26: 12 | D26: limité à 12
A27: Nombre total de sessions de conseils d’arrondissement tenues au cours de l’année | C27: =SUM(CA!B3:B50) -> 0 | D27: somme dans CA
A28: Nombre d’arrondissements | C28: 7
A29: Nombre total de réunions de conseils de village tenues au cours de l’année | C29: =SUM(CV!C5:C100) -> 0 | D29: somme d&ns CV
A30: Nombre de villages | C30: 65
A31: Nombre de documents ou d’arrêtés portant délégation de signature pris. | C31: ='Autres données'!D19 -> 2
A32: Nombre de document ou arrêtés portant délégation de pouvoir pris. | C32: ='Autres données'!D20 -> 5
A33: Montant du budget prévisionnel | C33: =Budget!A5 -> 1187232688
A34: Montant du Budget Consommé | C34: =E37+C39 -> 489668534
A35: Recette fiscales previsionnelles | C35: =Budget!B5 -> 266814793
A36: Dépenses d'investissement | B36: Ressources propres | C36: =Budget!D5 -> 13834751
B37: Investissement provenant de la coopération décentralisée | C37: =Budget!E5 -> 13834317 | E37: =SUM(C36:C38) -> 238813736
B38: Autres ressources | C38: =Budget!F5 -> 211144668
A39: Dépenses totales de fonctionnement | C39: =Budget!G5 -> 250854798
A40: Dépenses d'entretien des équipements et ouvrages | C40: =Budget!H5 -> 16388718
A41: Montant des ressources propres de l'année n-1 | C41: =Budget!K5 -> 245000754
A42: Montant des ressources propres de l'année n | C42: =Budget!L5 -> 265212209
A43: Recettes fiscales recouvrées | C43: =Budget!I5 -> 187429804
A44: Montant des cotisations versées à échéance | C44: =Budget!M5 -> 1000000
A45: Montant des cotisations dues à échéance | C45: =Budget!N5 -> 1800000
A46: Nombre de marchés conclus dans l’année | C46: =Marchés!E5 -> 28
A47: =Marchés!A3 -> Plan de passation des marchés publics publiés | C47: =IF(Marchés!E3="OUI",1,0) -> 1
A48: =Marchés!A4:D4 -> Nombre de marchés publics passés hors plan de passation des marchés | C48: =Marchés!E4 -> 0 | D48: =IF(Marchés!E4="",0,IF(Marchés!E4=0,1,0)) -> 1
A49: Nombre de marchés conclus dans l’année et ayant respecté les procédures. | C49: =Marchés!E6 -> 28
A50: Délai moyen de passation des marchés publics communaux | C50: =IF(C46=0,0,D50/C46) -> 1 | D50: =SUM(Marchés!$D$16:$XY$16) -> 28
A51: Nombre de fois où les relevés des délibérations affichés | C51: =COUNTA(CC!E6:E9) -> 4
A52: Délai d’affichage | C52: =SUM(CC!I6:I9)/C2 -> 0.75 | D52: 8 jours maxi aprs la fin de la session
A53: Nombre de séances de reddition de comptes | C53: ='Autres données'!D21 -> 2
A54: Nombre de séances de reddition de comptes prévus. | C54: ='Autres données'!D22 -> 2
A55: Nombre d’actions spécifiques réalisées en faveur des femmes | C55: ='Autres données'!D23 -> 2
A56: Nombre d’actions spécifiques réalisées dans le PTA | C56: ='Autres données'!D24 -> 2
A57: ='Autres données'!C25 -> Existence d’un lieu publique dédié à l'informations sur les prestations de la commune | C57: =IF('Autres données'!D25="OUI",1,0) -> 1
A58: ='Autres données'!C26 -> Existence d'une personne en charge de l'information | C58: =IF('Autres données'!D26="OUI",1,0) -> 1
A59: Nombre de cadres de concertation. | C59: =COUNTA('Cadres de Concertation'!F6:L6) -> 6 | D59: =IF(C59<=0,0,IF(C59>3,1,C59/4)) -> 1
A60: Nombre moyen de réunions du cadre de concertation tenu | C60: =SUM('Cadres de Concertation'!F6:L6)/C59 -> 4.833333333 | D60: =IF(C60<=0.5,0,IF(C60<1.5,0.25,IF(C60<2.5,0.5,IF(C60<4,0.75,1)))) -> 1
A61: Existence ou non d’un SDAC. | C61: =IF('Autres données'!D27="OUI",1,0) -> 0
A62: Existence ou non d’un PDC | C62: =IF('Autres données'!D28="OUI",1,0) -> 1
A63: Montant PAI prévision | C63: =Budget!C5 -> 4418728000
A64: Montant PAI réalisé | C64: =Budget!J5 -> 312670230
A65: Nombre de séances de suivi évaluation des PTA/PAI/PAD | C65: =SUM('Autres données'!D29:D31) -> 2
A66: Nombre d’infrastructures économiques et marchandes réalisées en année n | C66: ='Autres données'!D32 -> 10
A67: Nombre d’infrastructures économiques et marchandes réalisées en année n-1 | C67: ='Autres données'!D33 -> 16
A68: Nombre d'EPC demandé (village) | C68: =SUM(CV!D5:D191) -> 144 | F68: somme
A69: Nombre d'EPC réalisé (Village) | C69: =SUM(CV!E5:E191) -> 134
A70: Nombre de ADC demandé (Commune-Autre données) | C70: ='Autres données'!D12 -> 126
A71: Nombre de ADC réalisé (Commune-Autre données) | C71: ='Autres données'!D13 -> 126
A72: Existence ou inexistence d’un tableau de bord social actualisé | C72: =IF('Autres données'!D34="OUI",1,0) -> 0
A73: Date d’actualisation du tableau de bord social | C73: ='Autres données'!D35 -> 00:00:00
A74: Existence d'un tableau de bord | C74: ='Autres données'!D34 -> NON
A75: Nombre d’ accord de coopération décentralisée. | C75: =IF('Autres données'!D36<1,0,IF('Autres données'!D36=1,0.5,1)) -> 0.5
A76: Nombre d’activités des accords de coopération décentralisées réalisées. | C76: =IF('Autres données'!D37<1,0,IF('Autres données'!D37<3,0.5,1)) -> 0.5
A77: Nombre de conflits fonciers impliquant la commune | C77: =IF('Autres données'!D14="","",'Autres données'!D14) -> 5 | D77: =IF(C77="",0,IF(C77=0,1,IF(C77<=3,0.75,IF(C77<=8,0.5,IF(C77<=15,0.25,0))))) -> 0.5
A78: Nombre de participation du maire ou de son représentant au CDCC au cours de l’année | C78: =COUNTIF(Tutelle!B5:B6,">0") -> 2 | D78: feuille tutelle (compter le nombre de lignes 5 ou 6 rempli
A79: Nombre de CDCC tenus dans l’année. | C79: =COUNTA(Tutelle!C5:C6) -> 2 | D79: fixer à 2
A80: Nombre total de présence du maire ou de ses adjoints au CDCC | C80: =SUMIF(Tutelle!C5:C6,"<>",Tutelle!B5:B6) -> 6
A81: Nombre total attendu (Maire et ses adjoints) pour toutes les sessions | C81: =C79*Tutelle!C3 -> 6
A82: Nombre d’actes communaux conformes en une année | C82: =Tutelle!D8 -> 15
A83: Nombre d’actes communaux soumis à la tutelle en un an | C83: =Tutelle!D9 -> 17
A84: Le budget est transmis ou pas. | C84: =IF(Tutelle!H2="TRANSMIS",1,0) -> 1
A85: Délai de transmission du budget après adoption par le conseil communal | C85: =IF(Budget!Q5="",0,IF(Budget!Q5<=DATE(Acceuil!P12,3,31),1,0)) -> 0
A86: Délai d'approbation du budget par la tutelle | C86: =IF(OR(Tutelle!H4="",Tutelle!H5=""),0,IF(Tutelle!H5<=EDATE(Tutelle!H4,1),1,0)) -> 0 | D86: si<1mois, 1, 0 sinon
A87: Le compte administratif est transmis ou pas. | C87: =IF(Tutelle!H6="TRANSMIS",1,0) -> 1
A88: Délai de transmission du compte administratif après adoption par le conseil communal | C88: =IF(Tutelle!H7="",0,IF(Tutelle!H7<=DATE(Acceuil!P12+1,6,30),1,0)) -> 1
A89: Délai d'approbation du compte administratif par la tutelle | C89: =IF(OR(Tutelle!H8="",Tutelle!H9=""),0,IF(Tutelle!H9<=EDATE(Tutelle!H8,1),1,0)) -> 0
A90: Nombre de réunions du cadre de concertation prévu (Mairie + SDE) | C90: ='Cadres de Concertation'!C5 -> 12
A91: Nombre de réunions du cadre de concertation tenu (Mairie + SDE) | C91: =COUNTA('Cadres de Concertation'!C7:C18) -> 8 | E91: =C91/C90 -> 0.6666666667 | F91: =C92/C93 -> 0.765625
A92: Nombre total des membres présents (Mairie + SDE) | C92: =SUMIF('Cadres de Concertation'!C7:C18,"<>",'Cadres de Concertation'!B7:B18) -> 196
A93: Nombre total des membres attendus (Mairie + SDE) | C93: ='Cadres de Concertation'!C4*Récapitulatif!C91 -> 256

Sheet Indicateurs (hidden)
A1: D1 | B1: 1 | C1: Taux de realisation des sessions ordinaires du conseil communal | D1: =Récapitulatif!C2/4 -> 1
B2: 2 | C2: Taux de services fonctionnels | D2: =Récapitulatif!C4/Récapitulatif!C3 -> 0.9230769231
B3: 3 | C3: Taux de participation des élus aux conseils communaux | D3: =Récapitulatif!C6/(Récapitulatif!C5*Récapitulatif!C2) -> 0.9210526316
B4: 4 | C4: Existance d'un manuel de procedure à jour | D4: =Récapitulatif!C7 -> 0.5
B5: 5 | C5: Taux de personnes évaluées | D5: =Récapitulatif!C8/Récapitulatif!C9 -> 1
B6: 6 | C6: Taux de commissions permanentes fonctionnelles | D6: =((Récapitulatif!C11/Récapitulatif!C10)+(Récapitulatif!C12/CP!AP15)+(Récapitulatif!C14/Récapitulatif!C13))/3 -> 1.330065359
B7: 7 | C7: Taux d'adéquation profil/poste | D7: =Récapitulatif!C16/Récapitulatif!C15 -> 0.8888888889
B8: 8 | C8: Fonctionalité du système de classement et d'archivage | D8: =SUM(Récapitulatif!C17:C20)/4 -> 0.75
B9: 9 | C9: Taux de services publics locaux en gestion déléguée | D9: =Récapitulatif!C22/Récapitulatif!C21 -> 0.7181818182
B10: 10 | C10: Taux de realisation des rapports d'activités du maire | D10: =Récapitulatif!C23/Récapitulatif!C24 -> 1
B11: 11 | C11: Taux de tenu des reunions de municipalité | D11: =Récapitulatif!C25/Récapitulatif!C26 -> 0.4166666667
B12: 12 | C12: Taux moyen de tenue des sessions du conseil d'arrondissement | D12: =Récapitulatif!C27/Récapitulatif!C28 -> 0
B13: 13 | C13: Taux moyen de tenue des sessions du conseil de villages | D13: =Récapitulatif!C29/Récapitulatif!C30 -> 0
B14: 14 | C14: Nombre de délégation de signature du maire aux adjoints | D14: =Récapitulatif!C31 -> 2
B15: 15 | C15: Nombre de délégation de pouvoir éffectué par le maire | D15: =Récapitulatif!C32 -> 5
A16: D2 | B16: 1 | C16: Taux d'éxecution du budget communal | D16: =Récapitulatif!C34/Récapitulatif!C33 -> 0.4124452931
B17: 2 | C17: Taux d'autofinancement des Investissements | D17: =Récapitulatif!C36/Récapitulatif!E37 -> 0.05793113592
B18: 3 | C18: Part des Investissements dans les dépenses totales de la commune | D18: =Récapitulatif!E37/Récapitulatif!C34 -> 0.4877048849
B19: 4 | C19: Part des dépenses d'entretien des équipements et ouvrages dans les depenses de fonctionnement | D19: =Récapitulatif!C40/Récapitulatif!C39 -> 0.06533149109
B20: 5 | C20: Adoption du budget dans les délais | D20: =IF(Tutelle!H3="",0,IF(Tutelle!H3<DATE(Acceuil!P12,1,1),1,0)) -> 1
B21: 6 | C21: Respect du délai de vote du compte administratif | D21: =IF(Tutelle!H7="",0,IF(Tutelle!H7<=DATE(Acceuil!P12,6,30),1,0)) -> 1
B22: 7 | C22: Taux d'accroissement des ressources propres | D22: =(Récapitulatif!C42-Récapitulatif!C41)/Récapitulatif!C41 -> 0.08249548081
B23: 8 | C23: Taux de recouvrement fiscal | D23: =Récapitulatif!C43/Récapitulatif!C35 -> 0.7024715605
B24: 9 | C24: délai moyen de passation des marchés publics communaux | D24: =Récapitulatif!C50/Récapitulatif!C46 -> 0.03571428571
B25: 10 | C25: Existance des plans de passation des marchés validés et publiés | D25: =(Récapitulatif!C47+Récapitulatif!D48)/2 -> 1
B26: 11 | C26: Ratio des marchés publics ayant respecté les procédures | D26: =Récapitulatif!C49/Récapitulatif!C46 -> 1
A27: D3 | B27: 1 | C27: Affichage des relevés des décisions du Conseil Communal dans les délai | D27: =((Récapitulatif!C51/Récapitulatif!C2)+Récapitulatif!C52)/2 -> 0.875
B28: 2 | C28: Taux de réalisation des seances de reddition de compte | D28: =Récapitulatif!C53/Récapitulatif!C54 -> 1
B29: 3 | C29: Nombre d'actions spécifiques en faveur des femmes au cours de l'année | D29: =Récapitulatif!C55/Récapitulatif!C56 -> 1
B30: 4 | C30: Existance d'un mecanisme d'information du public par rapport aux prestations de la commune | D30: =(Récapitulatif!C57+Récapitulatif!C58)/2 -> 1
B31: 5 | C31: Nombre de cadre de concertation fonctionnel | D31: =(Récapitulatif!D59+Récapitulatif!D60)/2 -> 1
A32: D4 | B32: 1 | C32: Existance d'un SDAC | D32: =Récapitulatif!C61 -> 0
B33: 2 | C33: Existance d'un PDC | D33: =(Récapitulatif!C62+(Récapitulatif!C64/Récapitulatif!C63))/2 -> 0.5353801173
B34: 3 | C34: Nombre de reunions de suivi-évaluation du PTA/PAI/PAD | D34: =Récapitulatif!C65 -> 2
B35: 4 | C35: Taux d'accroissement des infrastructures économiques et marchandes | D35: =(Récapitulatif!C66-Récapitulatif!C67)/Récapitulatif!C67 -> -0.375
B36: 5 | C36: Fonctionalité des organes de gestion fonciere aux niveaux communal et infra communal | D36: =((Récapitulatif!C69/Récapitulatif!C68)+(Récapitulatif!C71/Récapitulatif!C70))/2 -> 0.9652777778
B37: 6 | C37: Existance d'un tableau de bord social actualisé | D37: =Récapitulatif!C72 -> 0
B38: 7 | C38: Nombre d'accord de cooperation decentralisée mise en œuvre | D38: =(Récapitulatif!C75+Récapitulatif!C76)/2 -> 0.5
B39: 8 | C39: Taux de paiement des cotisations de la commune à l'intercommunalité | D39: =IF(Récapitulatif!C45=0,0,Récapitulatif!C44/Récapitulatif!C45) -> 0.5555555556
B40: 9 | C40: Nombre de contentieux fonciers impliquant la Mairie | D40: =Récapitulatif!D77 -> 0.5
A41: D5 | B41: 1 | C41: Nombre de participations au CDCC | D41: =((Récapitulatif!C78/Récapitulatif!C79)+(Récapitulatif!C80/Récapitulatif!C81))/2 -> 1
B42: 2 | C42: Taux de conformité des actes communaux | D42: =IF(Récapitulatif!C83=0,0,Récapitulatif!C82/Récapitulatif!C83) -> 0.8823529412
B43: 3 | C43: Transmission du budget dans les délais | D43: =SUM(Récapitulatif!C84:C86)/3 -> 0.3333333333
B44: 4 | C44: Transmission du compte administratif dans les délais | D44: =SUM(Récapitulatif!C87:C89)/3 -> 0.6666666667
B45: 5 | C45: Animation d'un cadre de concertation entre le maire et les services déconcentrés communaux | D45: =(Récapitulatif!E91+Récapitulatif!F91)/2 -> 0.7161458333
